Department Family,Entity,Date,Expense Type,Expense Area,Supplier,Transaction Number,Amount,Description,Supplier Postcode,Supplier Type,Expenditure Type
DWP,ILF,02/05/2014,Bespoke Software (Cost),Central,Dynamic Data Systems Ltd,147351,"6,708.00",Bespoke software development, NG16 1RL,,Administrative
DWP,ILF,13/05/2014,Other Prepayments,Central,Reed Business Info Ltd,147619,"2,526.00",advertisement fees, RH16 3DH,,Administrative
DWP,ILF,15/05/2014,Other Prepayments,Central,BT PLC,147665,"3,398.34",Telephone service, NE82 6XX,,Administrative
DWP,ILF,16/05/2014,Other Prepayments,Central,Bottomline Technologies,147692,"1,200.00",IT software and support, RG1 7JX,,Administrative
DWP,ILF,21/05/2014,Other Prepayments,Central,DWP,147807,"6,372.00",Business subscription iro Grant Recovery, FY5 3TA,,Administrative
DWP,ILF,06/05/2014,FE Assistance,Human Resources,New insights Life Coaching,147391,"1,245.00",FE Assistance,BS03BY,,Administrative
DWP,ILF,06/05/2014,Independent Assessor visits,Social Work,Independent Assessor Costs,147354,"1,404.00",Assessment of social care needs and recommendation of ILF funding contribution,0,,Programme
DWP,ILF,06/05/2014,Independent Assessor visits,Social Work,Independent Assessor Costs,147355,"1,310.40",Assessment of social care needs and recommendation of ILF funding contribution,0,,Programme
DWP,ILF,06/05/2014,Independent Assessor visits,Social Work,Independent Assessor Costs,147356,"1,197.90",Assessment of social care needs and recommendation of ILF funding contribution,0,,Programme
DWP,ILF,06/05/2014,Independent Assessor visits,Social Work,Independent Assessor Costs,147357,804.15,Assessment of social care needs and recommendation of ILF funding contribution,0,,Programme
DWP,ILF,06/05/2014,Independent Assessor visits,Social Work,Independent Assessor Costs,147358,"1,526.20",Assessment of social care needs and recommendation of ILF funding contribution,0,,Programme
DWP,ILF,06/05/2014,Independent Assessor visits,Social Work,Independent Assessor Costs,147359,"1,269.00",Assessment of social care needs and recommendation of ILF funding contribution,0,,Programme
DWP,ILF,06/05/2014,Independent Assessor visits,Social Work,Independent Assessor Costs,147360,"1,280.25",Assessment of social care needs and recommendation of ILF funding contribution,0,,Programme
DWP,ILF,06/05/2014,Independent Assessor visits,Social Work,Independent Assessor Costs,147361,"2,618.10",Assessment of social care needs and recommendation of ILF funding contribution,0,,Programme
DWP,ILF,06/05/2014,Independent Assessor visits,Social Work,Independent Assessor Costs,147362,859.5,Assessment of social care needs and recommendation of ILF funding contribution,0,,Programme
DWP,ILF,06/05/2014,Independent Assessor visits,Social Work,Independent Assessor Costs,147363,"1,109.70",Assessment of social care needs and recommendation of ILF funding contribution,0,,Programme
DWP,ILF,06/05/2014,Independent Assessor visits,Social Work,Independent Assessor Costs,147364,"1,034.10",Assessment of social care needs and recommendation of ILF funding contribution,0,,Programme
DWP,ILF,06/05/2014,Independent Assessor visits,Social Work,Independent Assessor Costs,147365,623.7,Assessment of social care needs and recommendation of ILF funding contribution,0,,Programme
DWP,ILF,06/05/2014,Independent Assessor visits,Social Work,Independent Assessor Costs,147366,657.45,Assessment of social care needs and recommendation of ILF funding contribution,0,,Programme
DWP,ILF,06/05/2014,Independent Assessor visits,Social Work,Independent Assessor Costs,147367,533.25,Assessment of social care needs and recommendation of ILF funding contribution,0,,Programme
DWP,ILF,06/05/2014,Independent Assessor visits,Social Work,Independent Assessor Costs,147368,"2,493.90",Assessment of social care needs and recommendation of ILF funding contribution,0,,Programme
DWP,ILF,06/05/2014,Independent Assessor visits,Social Work,Independent Assessor Costs,147369,"1,925.55",Assessment of social care needs and recommendation of ILF funding contribution,0,,Programme
DWP,ILF,06/05/2014,Independent Assessor visits,Social Work,Independent Assessor Costs,147370,"1,354.05",Assessment of social care needs and recommendation of ILF funding contribution,0,,Programme
DWP,ILF,07/05/2014,Independent Assessor visits,Social Work,Independent Assessor Costs,147404,"1,905.30",Assessment of social care needs and recommendation of ILF funding contribution,0,,Programme
DWP,ILF,12/05/2014,Independent Assessor visits,Social Work,Independent Assessor Costs,147523,"2,029.05",Assessment of social care needs and recommendation of ILF funding contribution,0,,Programme
DWP,ILF,12/05/2014,Independent Assessor visits,Social Work,Independent Assessor Costs,147524,889.2,Assessment of social care needs and recommendation of ILF funding contribution,0,,Programme
DWP,ILF,12/05/2014,Independent Assessor visits,Social Work,Independent Assessor Costs,147525,"2,253.15",Assessment of social care needs and recommendation of ILF funding contribution,0,,Programme
DWP,ILF,12/05/2014,Independent Assessor visits,Social Work,Independent Assessor Costs,147527,"2,217.60",Assessment of social care needs and recommendation of ILF funding contribution,0,,Programme
DWP,ILF,12/05/2014,Independent Assessor visits,Social Work,Independent Assessor Costs,147529,"2,666.70",Assessment of social care needs and recommendation of ILF funding contribution,0,,Programme
DWP,ILF,12/05/2014,Independent Assessor visits,Social Work,Independent Assessor Costs,147530,"1,266.75",Assessment of social care needs and recommendation of ILF funding contribution,0,,Programme
DWP,ILF,12/05/2014,Independent Assessor visits,Social Work,Independent Assessor Costs,147531,"1,622.70",Assessment of social care needs and recommendation of ILF funding contribution,0,,Programme
DWP,ILF,12/05/2014,Independent Assessor visits,Social Work,Independent Assessor Costs,147532,"2,266.65",Assessment of social care needs and recommendation of ILF funding contribution,0,,Programme
DWP,ILF,12/05/2014,Independent Assessor visits,Social Work,Independent Assessor Costs,147533,"1,667.70",Assessment of social care needs and recommendation of ILF funding contribution,0,,Programme
DWP,ILF,12/05/2014,Independent Assessor visits,Social Work,Independent Assessor Costs,147534,907.65,Assessment of social care needs and recommendation of ILF funding contribution,0,,Programme
DWP,ILF,12/05/2014,Independent Assessor visits,Social Work,Independent Assessor Costs,147535,598.95,Assessment of social care needs and recommendation of ILF funding contribution,0,,Programme
DWP,ILF,12/05/2014,Independent Assessor visits,Social Work,Independent Assessor Costs,147536,"1,439.10",Assessment of social care needs and recommendation of ILF funding contribution,0,,Programme
DWP,ILF,12/05/2014,Independent Assessor visits,Social Work,Independent Assessor Costs,147538,"1,731.15",Assessment of social care needs and recommendation of ILF funding contribution,0,,Programme
DWP,ILF,12/05/2014,Independent Assessor visits,Social Work,Independent Assessor Costs,147539,"1,874.25",Assessment of social care needs and recommendation of ILF funding contribution,0,,Programme
DWP,ILF,12/05/2014,Independent Assessor visits,Social Work,Independent Assessor Costs,147540,"1,930.05",Assessment of social care needs and recommendation of ILF funding contribution,0,,Programme
DWP,ILF,12/05/2014,Independent Assessor visits,Social Work,Independent Assessor Costs,147541,"1,479.60",Assessment of social care needs and recommendation of ILF funding contribution,0,,Programme
DWP,ILF,12/05/2014,Independent Assessor visits,Social Work,Independent Assessor Costs,147542,"1,741.05",Assessment of social care needs and recommendation of ILF funding contribution,0,,Programme
DWP,ILF,12/05/2014,Independent Assessor visits,Social Work,Independent Assessor Costs,147543,"1,523.70",Assessment of social care needs and recommendation of ILF funding contribution,0,,Programme
DWP,ILF,12/05/2014,Independent Assessor visits,Social Work,Independent Assessor Costs,147544,"1,530.45",Assessment of social care needs and recommendation of ILF funding contribution,0,,Programme
DWP,ILF,12/05/2014,Independent Assessor visits,Social Work,Independent Assessor Costs,147545,814.05,Assessment of social care needs and recommendation of ILF funding contribution,0,,Programme
DWP,ILF,12/05/2014,Independent Assessor visits,Social Work,Independent Assessor Costs,147546,899.1,Assessment of social care needs and recommendation of ILF funding contribution,0,,Programme
DWP,ILF,12/05/2014,Independent Assessor visits,Social Work,Independent Assessor Costs,147547,"1,977.75",Assessment of social care needs and recommendation of ILF funding contribution,0,,Programme
DWP,ILF,12/05/2014,Independent Assessor visits,Social Work,Independent Assessor Costs,147548,607.95,Assessment of social care needs and recommendation of ILF funding contribution,0,,Programme
DWP,ILF,12/05/2014,Independent Assessor visits,Social Work,Independent Assessor Costs,147549,"1,796.60",Assessment of social care needs and recommendation of ILF funding contribution,0,,Programme
DWP,ILF,12/05/2014,Independent Assessor visits,Social Work,Independent Assessor Costs,147550,"1,708.05",Assessment of social care needs and recommendation of ILF funding contribution,0,,Programme
DWP,ILF,12/05/2014,Independent Assessor visits,Social Work,Independent Assessor Costs,147552,"1,394.10",Assessment of social care needs and recommendation of ILF funding contribution,0,,Programme
DWP,ILF,12/05/2014,Independent Assessor visits,Social Work,Independent Assessor Costs,147553,"1,426.50",Assessment of social care needs and recommendation of ILF funding contribution,0,,Programme
DWP,ILF,19/05/2014,Independent Assessor visits,Social Work,Independent Assessor Costs,147708,"1,965.60",Assessment of social care needs and recommendation of ILF funding contribution,0,,Programme
DWP,ILF,19/05/2014,Independent Assessor visits,Social Work,Independent Assessor Costs,147709,870.75,Assessment of social care needs and recommendation of ILF funding contribution,0,,Programme
DWP,ILF,19/05/2014,Independent Assessor visits,Social Work,Independent Assessor Costs,147711,"1,445.85",Assessment of social care needs and recommendation of ILF funding contribution,0,,Programme
DWP,ILF,19/05/2014,Independent Assessor visits,Social Work,Independent Assessor Costs,147712,772.65,Assessment of social care needs and recommendation of ILF funding contribution,0,,Programme
DWP,ILF,19/05/2014,Independent Assessor visits,Social Work,Independent Assessor Costs,147713,"2,431.80",Assessment of social care needs and recommendation of ILF funding contribution,0,,Programme
DWP,ILF,19/05/2014,Independent Assessor visits,Social Work,Independent Assessor Costs,147714,918.45,Assessment of social care needs and recommendation of ILF funding contribution,0,,Programme
DWP,ILF,19/05/2014,Independent Assessor visits,Social Work,Independent Assessor Costs,147716,"1,283.40",Assessment of social care needs and recommendation of ILF funding contribution,0,,Programme
DWP,ILF,19/05/2014,Independent Assessor visits,Social Work,Independent Assessor Costs,147717,"1,810.35",Assessment of social care needs and recommendation of ILF funding contribution,0,,Programme
DWP,ILF,19/05/2014,Independent Assessor visits,Social Work,Independent Assessor Costs,147718,888.3,Assessment of social care needs and recommendation of ILF funding contribution,0,,Programme
DWP,ILF,19/05/2014,Independent Assessor visits,Social Work,Independent Assessor Costs,147719,"1,733.85",Assessment of social care needs and recommendation of ILF funding contribution,0,,Programme
DWP,ILF,19/05/2014,Independent Assessor visits,Social Work,Independent Assessor Costs,147720,851.4,Assessment of social care needs and recommendation of ILF funding contribution,0,,Programme
DWP,ILF,19/05/2014,Independent Assessor visits,Social Work,Independent Assessor Costs,147721,"1,138.50",Assessment of social care needs and recommendation of ILF funding contribution,0,,Programme
DWP,ILF,19/05/2014,Independent Assessor visits,Social Work,Independent Assessor Costs,147722,694.8,Assessment of social care needs and recommendation of ILF funding contribution,0,,Programme
DWP,ILF,19/05/2014,Independent Assessor visits,Social Work,Independent Assessor Costs,147723,"1,059.30",Assessment of social care needs and recommendation of ILF funding contribution,0,,Programme
DWP,ILF,19/05/2014,Independent Assessor visits,Social Work,Independent Assessor Costs,147724,"1,430.10",Assessment of social care needs and recommendation of ILF funding contribution,0,,Programme
DWP,ILF,19/05/2014,Independent Assessor visits,Social Work,Independent Assessor Costs,147725,"1,243.35",Assessment of social care needs and recommendation of ILF funding contribution,0,,Programme
DWP,ILF,19/05/2014,Independent Assessor visits,Social Work,Independent Assessor Costs,147726,708.75,Assessment of social care needs and recommendation of ILF funding contribution,0,,Programme
DWP,ILF,19/05/2014,Independent Assessor visits,Social Work,Independent Assessor Costs,147727,733.05,Assessment of social care needs and recommendation of ILF funding contribution,0,,Programme
DWP,ILF,19/05/2014,Independent Assessor visits,Social Work,Independent Assessor Costs,147727,746.1,Assessment of social care needs and recommendation of ILF funding contribution,0,,Programme
DWP,ILF,19/05/2014,Independent Assessor visits,Social Work,Independent Assessor Costs,147730,"1,114.65",Assessment of social care needs and recommendation of ILF funding contribution,0,,Programme
DWP,ILF,27/05/2014,Independent Assessor visits,Social Work,Independent Assessor Costs,147899,"1,681.65",Assessment of social care needs and recommendation of ILF funding contribution,0,,Programme
DWP,ILF,27/05/2014,Independent Assessor visits,Social Work,Independent Assessor Costs,147900,"2,726.10",Assessment of social care needs and recommendation of ILF funding contribution,0,,Programme
DWP,ILF,27/05/2014,Independent Assessor visits,Social Work,Independent Assessor Costs,147903,"1,433.70",Assessment of social care needs and recommendation of ILF funding contribution,0,,Programme
DWP,ILF,27/05/2014,Independent Assessor visits,Social Work,Independent Assessor Costs,147904,"1,992.15",Assessment of social care needs and recommendation of ILF funding contribution,0,,Programme
DWP,ILF,27/05/2014,Independent Assessor visits,Social Work,Independent Assessor Costs,147905,832.35,Assessment of social care needs and recommendation of ILF funding contribution,0,,Programme
DWP,ILF,27/05/2014,Independent Assessor visits,Social Work,Independent Assessor Costs,147906,"2,191.95",Assessment of social care needs and recommendation of ILF funding contribution,0,,Programme
DWP,ILF,27/05/2014,Independent Assessor visits,Social Work,Independent Assessor Costs,147907,"1,231.65",Assessment of social care needs and recommendation of ILF funding contribution,0,,Programme
DWP,ILF,27/05/2014,Independent Assessor visits,Social Work,Independent Assessor Costs,147908,"2,051.10",Assessment of social care needs and recommendation of ILF funding contribution,0,,Programme
DWP,ILF,27/05/2014,Independent Assessor visits,Social Work,Independent Assessor Costs,147909,"2,059.20",Assessment of social care needs and recommendation of ILF funding contribution,0,,Programme
DWP,ILF,27/05/2014,Independent Assessor visits,Social Work,Independent Assessor Costs,147910,"2,206.80",Assessment of social care needs and recommendation of ILF funding contribution,0,,Programme
DWP,ILF,27/05/2014,Independent Assessor visits,Social Work,Independent Assessor Costs,147911,679.8,Assessment of social care needs and recommendation of ILF funding contribution,0,,Programme
DWP,ILF,27/05/2014,Independent Assessor visits,Social Work,Independent Assessor Costs,147911,"2,526.55",Assessment of social care needs and recommendation of ILF funding contribution,0,,Programme
DWP,ILF,27/05/2014,Independent Assessor visits,Social Work,Independent Assessor Costs,147912,"1,261.80",Assessment of social care needs and recommendation of ILF funding contribution,0,,Programme
DWP,ILF,27/05/2014,Independent Assessor visits,Social Work,Independent Assessor Costs,147913,"1,017.00",Assessment of social care needs and recommendation of ILF funding contribution,0,,Programme
DWP,ILF,27/05/2014,Independent Assessor visits,Social Work,Independent Assessor Costs,147914,"2,313.00",Assessment of social care needs and recommendation of ILF funding contribution,0,,Programme
DWP,ILF,27/05/2014,Other Independent Assessor Claims,Social Work,Independent Assessor Costs,147897,549.65,Assessment of social care needs and recommendation of ILF funding contribution,0,,Programme
DWP,ILF,01/05/2014,Rent & Facilities Lease,Facilities,Land Securities Trillium,147284,"69,371.29","Building lease,maintenance and utilities", LS11 9DX,,Administrative
DWP,ILF,01/05/2014,Rent & Facilities Lease,Facilities,Land Securities Trillium,147285,"1,410.71","Building lease,maintenance and utilities", LS11 9DX,,Administrative
DWP,ILF,22/05/2014,Rent & Facilities Lease,Facilities,Land Securities Trillium,147821,"1,420.45","Building lease,maintenance and utilities", LS11 9DX,,Administrative
DWP,ILF,22/05/2014,Rent & Facilities Lease,Facilities,Land Securities Trillium,147822,"1,420.45","Building lease,maintenance and utilities", LS11 9DX,,Administrative
DWP,ILF,22/05/2014,Rent & Facilities Lease,Facilities,Land Securities Trillium,147837,"69,715.56","Building lease,maintenance and utilities", LS11 9DX,,Administrative
DWP,ILF,22/05/2014,Rent & Facilities Lease,Facilities,Land Securities Trillium,147838,"69,715.56","Building lease,maintenance and utilities", LS11 9DX,,Administrative
DWP,ILF,28/05/2014,Additional Facilities,Facilities,Nottingham City Council,147969,"1,194.60",Rates , NG1 2DE,,Administrative
DWP,ILF,01/05/2014,Utilities,Facilities,Land Securities Trillium,147283,"1,393.91","Building lease,maintenance and utilities", LS11 9DX,,Administrative
DWP,ILF,15/05/2014,Rates,Facilities,Nottingham City Council,147661,"7,110.00",Rates , NG1 2DE,,Administrative
DWP,ILF,15/05/2014,Phone Charges,Facilities,BT PLC,147665,"1,697.17",Telephone service, NE82 6XX,,Administrative
DWP,ILF,07/05/2014,Postage,Facilities,Royal Mail,147438,"2,315.00",Postal services, PE4 5PG,,Administrative
DWP,ILF,28/05/2014,Postage,Facilities,Royal Mail,147976,"2,315.00",Postal services, PE4 5PG,,Administrative
DWP,ILF,30/05/2014,Postage,Facilities,Royal Mail,148042,"19,242.10",Postal services, PE4 5PG,,Administrative
DWP,ILF,07/05/2014,Printing Services,Facilities,Williams Lea,147427,705.13,Office Printing,W1F8PR,,Administrative
DWP,ILF,07/05/2014,Printing Services,Facilities,Williams Lea,147433,"1,614.53",Office Printing,W1F8PR,,Administrative
DWP,ILF,07/05/2014,Printing Services,Facilities,Williams Lea,147434,"3,366.00",Office Printing,W1F8PR,,Administrative
DWP,ILF,28/05/2014,Stationery & Supplies,Facilities,Banner Business Services,147975,556.6,Stationary and Supplies,NR3 1QU,,Administrative
DWP,ILF,02/05/2014,Printing & Literature ,Communications,Capita Transaction Interpreting,147353,862.66,Printing service,OL3 5FZ,,Administrative
DWP,ILF,01/05/2014,Stakeholder Engagement,Corporate Affairs,Calders,147279,838.22,Hotel bookings,LS16 6RF,,Administrative
DWP,ILF,01/05/2014,Technical IT Support,Information & Governance,Phoneix,147296,"2,056.10",IT Technical Support Service,WF17 9LU,,Administrative
DWP,ILF,30/05/2014,Technical IT Support,Information & Governance,Phoneix,148044,"11,142.38",IT Technical Support Service,WF17 9LU,,Administrative
DWP,ILF,01/05/2014,Software Licensing,Human Resources,Ceridian Ltd,147280,522.08,Payroll and HR services, E14 9GE,,Administrative
DWP,ILF,01/05/2014,Software Licensing,Human Resources,Ceridian Ltd,147281,"1,112.94",Payroll and HR services, E14 9GE,,Administrative
DWP,ILF,30/05/2014,Software Licensing,Human Resources,Ceridian Ltd,148033,522.08,Payroll and HR services, E14 9GE,,Administrative
DWP,ILF,30/05/2014,Software Licensing,Human Resources,Ceridian Ltd,148034,"1,112.94",Payroll and HR services, E14 9GE,,Administrative
DWP,ILF,02/05/2014,Business Continuity,Information & Governance,Node4,147352,"1,410.00",Website services, DE24 8HZ,,Administrative
DWP,ILF,02/05/2014,Website Services,Information & Governance,Node4,147352,540,Website services, DE24 8HZ,,Administrative
DWP,ILF,28/05/2014,Misc IT Costs,Information & Governance,XMA Ltd,147971,"1,937.62",Printer Toner Cartidges,NG11 7EP,,Administrative
DWP,ILF,07/05/2014,Legal Costs,Payment Security,Shakespeares,147419,"1,080.00","Provision of Legal Service iro debt recovery, human resource, procurement or organisational litigation",0,,Administrative
DWP,ILF,22/05/2014,Legal Costs,Payment Security,Shakespeares,147861,"1,563.96","Provision of Legal Service iro debt recovery, human resource, procurement or organisational litigation",0,,Administrative
DWP,ILF,22/05/2014,Legal Costs,Payment Security,Shakespeares,147863,877.92,"Provision of Legal Service iro debt recovery, human resource, procurement or organisational litigation",0,,Administrative
DWP,ILF,01/05/2014,Legal Costs,Corporate Affairs,Shakespeares,147297,"3,060.00","Provision of Legal Service iro debt recovery, human resource, procurement or organisational litigation",0,,Administrative
DWP,ILF,21/05/2014,Data Matching Costs,Payment Security,DWP,147807,"1,274.40",Business subscription iro Grant Recovery, FY5 3TA,,Administrative
DWP,ILF,13/05/2014,General T&S ,Finance,Redfern Travel Ltd,147594,536.21,Travel and Accomodation bookings,BD1 3AZ,,Administrative
DWP,ILF,13/05/2014,General T&S ,Corporate Affairs,Redfern Travel Ltd,147594,"1,476.75",Travel and Accomodation bookings,BD1 3AZ,,Administrative
DWP,ILF,13/05/2014,General T&S ,Social Work,Redfern Travel Ltd,147594,573.43,Travel and Accomodation bookings,BD1 3AZ,,Administrative
